fUSD/lending_fUSD_20251214
["ID","MTS","AMOUNT","RATE_DAILY","PERIOD"]
[398455198,1765673440195,-151.0,0.000165,2]
[398455199,1765673440204,-151.0,0.000165,2]
[398455200,1765673440214,-178.380988,0.000165,2]
[398455201,1765673440224,-151.0,0.000165,2]
[398455202,1765673440235,-151.0,0.000165,2]
[398455203,1765673440244,-151.0,0.000165,2]
[398455204,1765673440253,-151.0,0.000165,2]
[398455205,1765673440262,-151.0,0.000165,2]
[398455206,1765673440272,-151.0,0.000165,2]
[398455207,1765673440281,-200.832929,0.000165,2]
[398455208,1765673440291,-200.832929,0.000165,2]
[398455209,1765673440300,-200.832929,0.000165,2]
[398455210,1765673440309,-200.832929,0.000165,2]
[398455211,1765673440318,-151.0,0.000165,2]
[398455212,1765673440327,-151.0,0.000165,2]
[398455213,1765673440336,-151.0,0.000165,2]
[398455214,1765673440345,-151.0,0.000165,2]
[398455215,1765673440354,-151.0,0.000165,2]
[398455216,1765673440363,-151.0,0.000165,2]
[398455217,1765673440372,-151.0,0.000165,2]
[398455218,1765673440381,-151.0,0.000165,2]
[398455219,1765673440390,-151.0,0.000165,2]
[398455220,1765673440399,-1067.365444,0.000165,2]
[398455221,1765673440408,-1067.365444,0.000165,2]
[398455222,1765673440416,-1067.365444,0.000165,2]
[398455223,1765673440426,-1067.365444,0.000165,2]
[398455224,1765673440435,-282.160474,0.000165,2]
[398455225,1765673440443,-282.160474,0.000165,2]
[398455226,1765673440452,-282.160474,0.000165,2]
[398455227,1765673440461,-282.160474,0.000165,2]
[398455228,1765673440470,-151.0,0.000165,2]
[398455229,1765673440479,-151.0,0.000165,2]
[398455230,1765673440489,-151.0,0.000165,2]
[398455231,1765673440498,-151.0,0.000165,2]
[398455232,1765673440507,-151.0,0.000165,2]
[398455233,1765673440516,-400.0,0.00016513,2]
[398455234,1765673440525,-153.706048,0.00016548,2]
[398455235,1765673440534,-151.0,0.00016548,2]
[398455236,1765673440543,-151.0,0.00016548,2]
[398455237,1765673440552,-275.573125,0.00016548,2]
[398455238,1765673440561,-313.00904,0.00016548,2]
[398455239,1765673440571,-313.00904,0.00016548,2]
[398455240,1765673440580,-313.00904,0.00016548,2]
[398455241,1765673440589,-313.00904,0.00016548,2]
[398455242,1765673440598,-151.0,0.00016548,2]
[398455243,1765673440607,-151.0,0.00016548,2]
[398455244,1765673440616,-151.0,0.00016548,2]
[398455245,1765673440625,-151.0,0.00016548,2]
[398455246,1765673440634,-151.0,0.00016548,2]
[398455247,1765673440643,-151.0,0.00016548,2]
[398455248,1765673440652,-151.0,0.00016548,2]
[398455249,1765673440661,-151.0,0.00016548,2]
[398455250,1765673440671,-151.0,0.00016548,2]
[398455251,1765673440680,-151.0,0.00016548,2]
[398455252,1765673440689,-151.0,0.00016548,2]
[398455253,1765673440698,-151.0,0.00016548,2]
[398455254,1765673440707,-151.0,0.00016548,2]
[398455255,1765673440716,-166.66,0.00016554,2]
[398455256,1765673440725,-151.0,0.00016556,2]
[398455257,1765673440734,-151.0,0.00016556,2]
[398455258,1765673440743,-151.0,0.00016556,2]
[398455259,1765673440751,-151.0,0.00016556,2]
[398455260,1765673440760,-151.0,0.00016556,2]
[398455261,1765673440769,-151.0,0.00016556,2]
[398455262,1765673440779,-151.0,0.00016556,2]
[398455263,1765673440788,-151.0,0.00016556,2]
[398455264,1765673440797,-151.0,0.00016556,2]
[398455265,1765673440807,-151.0,0.00016556,2]
[398455266,1765673440818,-151.0,0.00016556,2]
[398455267,1765673440827,-151.0,0.00016556,2]
[398455268,1765673440836,-215.85488,0.00016556,2]
[398455269,1765673440846,-151.0,0.00016556,2]
[398455270,1765673440855,-1067.365444,0.00016556,2]
[398455271,1765673440866,-1067.365444,0.00016556,2]
[398455272,1765673440876,-1067.365444,0.00016556,2]
[398455273,1765673440885,-1067.365449,0.00016556,2]
[398455274,1765673440896,-282.160474,0.00016556,2]
[398455275,1765673440905,-282.160474,0.00016556,2]
[398455276,1765673440914,-282.160474,0.00016556,2]
[398455277,1765673440923,-282.160474,0.00016556,2]
[398455278,1765673440932,-500.0,0.00016564,2]
[398455279,1765673440941,-151.0,0.00016564,2]
[398455280,1765673440951,-187.869808,0.00016564,2]
[398455281,1765673440960,-200.832929,0.00016564,2]
[398455282,1765673440969,-200.832929,0.00016564,2]
[398455283,1765673440978,-200.832929,0.00016564,2]
[398455284,1765673440987,-200.832929,0.00016564,2]
[398455285,1765673440996,-3831.0,0.00016565,2]
[398455286,1765673441007,-200.0,0.00016579,2]
[398455287,1765673441016,-153.689653,0.00016579,2]
[398455288,1765673441025,-151.0,0.00016579,2]
[398455289,1765673441034,-151.0,0.00016579,2]
[398455290,1765673441043,-151.0,0.00016579,2]
[398455291,1765673441053,-313.00904,0.00016579,2]
[398455292,1765673441063,-313.00904,0.00016579,2]
[398455293,1765673441072,-313.00904,0.00016579,2]
[398455294,1765673441081,-313.00904,0.00016579,2]
[398455295,1765673441091,-151.0,0.00016579,2]
[398455296,1765673441100,-151.0,0.00016579,2]
[398455297,1765673441110,-274.312692,0.00016579,2]
[398455298,1765673441119,-151.0,0.00016579,2]
[398455299,1765673441129,-179.40805,0.00016579,2]
[398455300,1765673441142,-151.0,0.00016579,2]
[398455301,1765673441151,-158.271516,0.00016579,2]
[398455302,1765673441161,-151.0,0.00016579,2]
[398455303,1765673441170,-151.0,0.00016579,2]
[398455304,1765673441179,-151.0,0.00016579,2]
[398455305,1765673441189,-151.0,0.00016579,2]
[398455306,1765673441198,-151.0,0.00016579,2]
[398455307,1765673441207,-280.017044,0.00016579,2]
[398455308,1765673441217,-151.0,0.00016579,2]
[398455309,1765673441226,-151.0,0.00016579,2]
[398455310,1765673441236,-151.0,0.00016579,2]
[398455311,1765673441245,-275.957946,0.00016579,2]
[398455312,1765673441255,-200.832929,0.00016579,2]
[398455313,1765673441264,-200.832929,0.00016579,2]
[398455314,1765673441273,-200.832929,0.00016579,2]
[398455315,1765673441282,-200.832928,0.00016579,2]
[398455316,1765673441292,-168.0,0.00016587,2]
[398455317,1765673441301,-150.0,0.000166,2]
[398455318,1765673441656,-11218.23409442,0.000166,2]
[398455319,1765673441668,-200.0,0.00016611,2]
[398455320,1765673441677,-176.57223857,0.00016631,2]
[398455321,1765673441687,-617.0,0.00016631,2]
[398455322,1765673441701,-400.0,0.00016635,2]
[398455323,1765673441711,-258.272032,0.00016656,2]
[398455324,1765673441722,-313.00904,0.00016656,2]
[398455325,1765673441733,-313.00904,0.00016656,2]
[398455326,1765673441742,-313.00904,0.00016656,2]
[398455327,1765673441751,-313.00904,0.00016656,2]
[398455328,1765673441761,-151.0,0.00016656,2]
[398455329,1765673441770,-151.0,0.00016656,2]
[398455330,1765673441780,-151.0,0.00016656,2]
[398455331,1765673441789,-151.0,0.00016656,2]
[398455332,1765673441799,-151.0,0.00016656,2]
[398455333,1765673441808,-151.0,0.00016656,2]
[398455334,1765673441821,-151.0,0.00016656,2]
[398455335,1765673441830,-151.0,0.00016656,2]
[398455336,1765673441839,-151.0,0.00016656,2]
[398455337,1765673441848,-2005.03236043,0.0001666,2]
[398455338,1765673441857,-400.0,0.00016678,2]
[398455339,1765673441867,-237.110364,0.000167,2]
[398455340,1765673441876,-151.0,0.000167,2]
[398455341,1765673441888,-151.0,0.000167,2]
[398455342,1765673441898,-151.0,0.000167,2]
[398455343,1765673441907,-32799.2199,0.000167,2]
[398455344,1765673441917,-5319.9557,0.000167,2]
[398455345,1765673441927,-155.71682144,0.000167,2]
[398455346,1765673441936,-500.0,0.00016701,2]
[398455347,1765673441945,-400.0,0.00016709,2]
[398455348,1765673441955,-722.37,0.00016712,2]
[398455349,1765673441964,-150.0,0.00016714,2]
[398455350,1765673441974,-313.00904,0.00016716,2]
[398455351,1765673441985,-313.00904,0.00016716,2]
[398455352,1765673441995,-313.00904,0.00016716,2]
[398455353,1765673442004,-313.009048,0.00016716,2]
[398455354,1765673442013,-11218.23409438,0.00016744,2]
[398455355,1765673442022,-617.0,0.00016768,2]
[398455356,1765673442031,-166.67,0.0001678,2]
[398455357,1765673442041,-500.0,0.00016799,2]
[398455358,1765673442050,-150.0,0.000168,2]
[398455359,1765673442059,-150.0,0.000168,2]
[398455360,1765673442069,-603.4223432,0.000168,2]
[398455361,1765673442084,-305.9892,0.000168,2]
[398455362,1765673442204,-151.0,0.00016438,2]
[398455363,1765673442213,-151.0,0.00016438,2]
[398455364,1765673442224,-237.739399,0.00016438,2]
[398455365,1765673442235,-90.5884568,0.000168,2]
[398455366,1765673442245,-168.0,0.00016804,2]
[398455367,1765673442256,-2.15334418,0.00016838,2]
[398455368,1765673442267,-405.419889,0.00016838,2]
[398455369,1765673442278,-92.42676682,0.00016838,2]
[398455370,1765673442288,-177.84333318,0.00016864,2]
[398455371,1765673442300,-1822.15666682,0.00016864,2]
[398455372,1765673442310,-622.14333318,0.00016889,2]
[398455373,1765673442321,-2243.60294719,0.00016889,2]
[398455374,1765673442332,-653.68413682,0.00016889,2]
[398455375,1765673442343,-1002.97,0.00016889,2]
[398455376,1765673442361,-642.2986497,0.00016889,2]
[398455377,1765673442373,-1877.68199999,0.00016889,2]
[398455395,1765673444587,-4175.8530275,0.00016889,2]
[398455396,1765673444597,-3200.85321226,0.000169,2]
[398455398,1765673444606,-171.47849172,0.000169,2]
[398455399,1765673444615,-209.2315377,0.000169,2]
[398455400,1765673444624,-10750.78259452,0.000169,2]
[398455401,1765673444646,-872.68780708,0.000169,2]
[398455402,1765673444658,-96.40265433,0.000169,2]
[398455403,1765673444667,-162.9,0.000169,2]
[398455404,1765673444676,-229.44787667,0.00016905,2]
[398455405,1765673444700,-3.77022356,0.00016905,2]
[398455406,1765673444711,-383.78189977,0.00016905,2]
[398455407,1765673444720,-168.0,0.00016918,2]
[398455408,1765673444729,-155.71682144,0.0001694,2]
[398455409,1765673444738,-221.5964601,0.00016949,2]
[398455410,1765673444747,-150.0,0.00016971,2]
[398455411,1765673444756,-128.90481869,0.00016973,2]
[398455412,1765673444767,-371.71271138,0.00016973,2]
[398455413,1765673444777,-500.0,0.00016973,2]
[398455414,1765673444787,-169.12411407,0.00016973,2]
[398455415,1765673444796,-500.0,0.00016973,2]
[398455416,1765673444807,-500.0,0.00016973,2]
[398455417,1765673444818,-500.0,0.00016975,2]
[398455418,1765673444828,-30.84173455,0.00016986,2]
[398455419,1765673444840,-691.52826545,0.00016986,2]
[398455420,1765673444850,-35.92846038,0.00016986,2]
[398455421,1765673444864,-2217.07153962,0.00016986,2]
[398455422,1765673444874,-189.44120539,0.0001699,2]
[398455423,1765673444884,-500.0,0.00016999,2]
[398455424,1765673444895,-500.0,0.00016999,2]
[398455425,1765673444904,-500.0,0.00016999,2]
[398455426,1765673444913,-161.25906309,0.00016999,2]
[398455427,1765673444922,-397.89779901,0.00016999,2]
[398455428,1765673444932,-300.0,0.00016999,2]
[398455429,1765673444941,-150.0,0.00017,2]
[398455430,1765673444950,-20106.23076282,0.00017,2]
[398455431,1765673444961,-328.26696821,0.00017,2]
[398455432,1765673444972,-803.00093127,0.00017,2]
[398455433,1765673444986,-507.20615774,0.00017,2]
[398455434,1765673446140,-204.0874132,0.00016385,2]
[398455435,1765673446150,-175.21726177,0.00016385,2]
[398455436,1765673446159,-195.36810789,0.00016385,2]
[398455437,1765673446169,-326.18983314,0.00016385,2]
[398455438,1765673446192,-141.38604505,0.00016385,2]
[398455439,1765673446201,-598.55395495,0.00017,2]
[398455994,1765673531012,861.49,0.00013699,2]
[398455996,1765673845185,250.0,0.00015618,2]
[398455997,1765674169197,170.55,0.000157,2]
[398455998,1765674205321,630.23,0.00015602,2]
[398455999,1765674206712,1821.64,0.00022,30]
[398456000,1765674319441,150.0,0.00015288,2]
[398456001,1765674319488,150.0,0.00015712,2]
[398456002,1765674319827,150.0,0.00015288,2]
[398456003,1765674319898,150.0,0.00015627,2]
[398456004,1765674320279,150.0,0.00015288,2]
[398456005,1765674320349,150.0,0.0001553,2]
[398456006,1765674324975,150.0,0.00015288,2]
[398456007,1765674328187,150.0,0.00015288,2]
[398456008,1765674331571,150.0,0.00015288,2]
[398456015,1765674458993,160.23,0.00012144,2]
[398456016,1765674607951,2954.269746,7.945e-05,2]
[398456017,1765674625570,166.66,0.00014586,2]
[398456018,1765674625609,166.66,0.00014894,2]
[398456019,1765674625674,166.66,0.00015201,2]
[398456020,1765674625712,166.66,0.00015508,2]
[398456036,1765674631424,-150.0,0.00015773,2]
[398456037,1765674631434,-166.66,0.00015815,2]
[398456038,1765674631444,-250.0,0.00015833,2]
[398456039,1765674631454,-33.34,0.00015893,2]
[398456040,1765674631471,-116.75,0.00015893,2]
[398456041,1765674631481,-152.33,0.00015893,2]
[398456042,1765674631498,-376.61026295,0.000159,2]
[398456043,1765674631508,-200.0,0.0001591,2]
[398456044,1765674631517,-300.0,0.00015951,2]
[398456045,1765674631529,-1200.0,0.00015951,2]
[398456046,1765674631540,-199.0642,0.00015952,2]
[398456048,1765674631549,-2500.0,0.00015952,2]
[398456050,1765674631562,-150.0,0.00015967,2]
[398456052,1765674631572,-150.0,0.00016016,2]
[398456054,1765674631582,-215.0738,0.00016042,2]
[398456055,1765674631593,-151.36,0.00016052,2]
[398456057,1765674631603,-151.15,0.00016052,2]
[398456059,1765674631612,-368.0,0.00016065,2]
[398456062,1765674631627,-166.66,0.00016122,2]
[398456064,1765674631637,-150.0,0.00016137,2]
[398456066,1765674631647,-150.0,0.00016137,2]
[398456068,1765674631657,-150.0,0.00016137,2]
[398456070,1765674631667,-151.0,0.00016144,2]
[398456072,1765674631676,-151.0,0.00016144,2]
[398456074,1765674631686,-510.0,0.00016146,2]
[398456076,1765674631696,-151.0,0.00016147,2]
[398456078,1765674631706,-151.0,0.00016147,2]
[398456080,1765674631717,-433.43,0.00016147,2]
[398456082,1765674631726,-961.34595,0.00016147,2]
[398456084,1765674631736,-151.0,0.00016147,2]
[398456086,1765674631746,-961.34595,0.00016147,2]
[398456088,1765674631755,-151.0,0.00016147,2]
[398456090,1765674631766,-359.255206,0.00016147,2]
[398456092,1765674631776,-961.34595,0.00016147,2]
[398456094,1765674631785,-359.255206,0.00016147,2]
[398456096,1765674631795,-961.34595,0.00016147,2]
[398456098,1765674631805,-359.255206,0.00016147,2]
[398456100,1765674631814,-359.255206,0.00016147,2]
[398456102,1765674631824,-151.0,0.00016147,2]
[398456104,1765674631833,-151.0,0.00016147,2]
[398456106,1765674631843,-151.0,0.00016147,2]
[398456108,1765674631852,-500.0,0.00016147,2]
[398456110,1765674631862,-200.0,0.00016147,2]
[398456112,1765674631871,-207.4,0.00016147,2]
[398456114,1765674631881,-215.0738,0.00016147,2]
[398456116,1765674631890,-223.0315306,0.00016147,2]
[398456118,1765674631900,-231.28369723,0.00016147,2]
[398456120,1765674631909,-375.55086939,0.00016147,2]
[398456122,1765674631919,-500.0,0.00016147,2]
[398456124,1765674631928,-995.0,0.00016147,2]
[398456126,1765674631938,-721.12765535,0.00016147,2]
[398456128,1765674631948,-500.0,0.00016147,2]
[398456130,1765674631958,-500.0,0.00016147,2]
[398456132,1765674631967,-151.0,0.00016147,2]
[398456134,1765674631976,-500.0,0.00016147,2]
[398456137,1765674631990,-500.0,0.00016147,2]
[398456139,1765674631999,-578.20924308,0.00016147,2]
[398456141,1765674632009,-500.0,0.00016147,2]
[398456143,1765674632019,-500.0,0.00016147,2]
[398456145,1765674632029,-500.0,0.00016147,2]
[398456147,1765674632039,-500.0,0.00016147,2]
[398456149,1765674632049,-232.0,0.00016147,2]
[398456151,1765674632058,-151.0,0.00016147,2]
[398456153,1765674632068,-500.0,0.00016147,2]
[398456155,1765674632078,-500.0,0.00016147,2]
[398456156,1765674632088,-500.0,0.00016147,2]
[398456158,1765674632098,-500.0,0.00016147,2]
[398456160,1765674632107,-500.0,0.00016147,2]
[398456162,1765674632117,-500.0,0.00016147,2]
[398456165,1765674632131,-500.0,0.00016147,2]
[398456167,1765674632142,-500.0,0.00016147,2]
[398456169,1765674632152,-500.0,0.00016147,2]
[398456171,1765674632161,-500.0,0.00016147,2]
[398456173,1765674632171,-500.0,0.00016147,2]
[398456174,1765674632181,-500.0,0.00016147,2]
[398456177,1765674632191,-500.0,0.00016147,2]
[398456178,1765674632200,-500.0,0.00016147,2]
[398456180,1765674632209,-1000.0,0.00016147,2]
[398456183,1765674632219,-500.0,0.00016147,2]
[398456185,1765674632229,-500.0,0.00016147,2]
[398456187,1765674632239,-1000.0,0.00016147,2]
[398456188,1765674632249,-250.0,0.00016147,2]
[398456190,1765674632259,-500.0,0.00016147,2]
[398456192,1765674632269,-1000.0,0.00016147,2]
[398456195,1765674632279,-500.0,0.00016147,2]
[398456197,1765674632288,-1000.0,0.00016147,2]
[398456199,1765674632298,-574.12855637,0.00016147,2]
[398456201,1765674632307,-151.0,0.00016147,2]
[398456203,1765674632317,-1000.0,0.00016147,2]
[398456204,1765674632327,-1000.0,0.00016147,2]
[398456206,1765674632339,-1000.0,0.00016147,2]
[398456209,1765674632351,-1000.0,0.00016147,2]
[398456211,1765674632361,-500.0,0.00016147,2]
[398456213,1765674632371,-1000.0,0.00016147,2]
[398456215,1765674632381,-1000.0,0.00016147,2]
[398456217,1765674632391,-1000.0,0.00016147,2]
[398456219,1765674632400,-1000.0,0.00016147,2]
[398456221,1765674632409,-1000.0,0.00016147,2]
[398456223,1765674632419,-1000.0,0.00016147,2]
[398456225,1765674632428,-1000.0,0.00016147,2]
[398456227,1765674632439,-1000.0,0.00016147,2]
[398456229,1765674632449,-300.0,0.00016147,2]
[398456231,1765674632458,-1000.0,0.00016147,2]
[398456233,1765674632469,-311.1,0.00016147,2]
[398456235,1765674632479,-1000.0,0.00016147,2]
[398456237,1765674632491,-1000.0,0.00016147,2]
[398456239,1765674632501,-1000.0,0.00016147,2]
[398456241,1765674632510,-1000.0,0.00016147,2]
[398456243,1765674632520,-1000.0,0.00016147,2]
[398456245,1765674632530,-1000.0,0.00016147,2]
[398456247,1765674632540,-1000.0,0.00016147,2]
[398456249,1765674632553,-1000.0,0.00016147,2]
[398456251,1765674632563,-1000.0,0.00016147,2]
[398456253,1765674632572,-218.91418656,0.00016147,2]
[398456255,1765674632582,-1000.0,0.00016147,2]
[398456257,1765674632591,-500.0,0.00016147,2]
[398456259,1765674632600,-1000.0,0.00016147,2]
[398456261,1765674632611,-1000.0,0.00016147,2]
[398456263,1765674632621,-500.0,0.00016147,2]
[398456265,1765674632630,-500.0,0.00016147,2]
[398456267,1765674632640,-1000.0,0.00016147,2]
[398456269,1765674632650,-1000.0,0.00016147,2]
[398456271,1765674632660,-500.0,0.00016147,2]
[398456273,1765674632670,-1000.0,0.00016147,2]
[398456275,1765674632680,-1000.0,0.00016147,2]
[398456277,1765674632690,-500.0,0.00016147,2]
[398456279,1765674632700,-250.0,0.00016147,2]
[398456281,1765674632709,-1000.0,0.00016147,2]
[398456283,1765674632720,-500.0,0.00016147,2]
[398456285,1765674632730,-250.0,0.00016147,2]
[398456288,1765674632742,-1000.0,0.00016147,2]
[398456290,1765674632751,-500.0,0.00016147,2]
[398456292,1765674632761,-1000.0,0.00016147,2]
[398456294,1765674632770,-260.94487555,0.00016147,2]
[398456296,1765674632780,-500.0,0.00016147,2]
[398456298,1765674632791,-1000.0,0.00016147,2]
[398456299,1765674632801,-500.0,0.00016147,2]
[398456302,1765674632811,-500.0,0.00016147,2]
[398456304,1765674632821,-500.0,0.00016147,2]
[398456306,1765674632831,-500.0,0.00016147,2]
[398456307,1765674632841,-500.0,0.00016147,2]
[398456310,1765674632851,-500.0,0.00016147,2]
[398456311,1765674632861,-500.0,0.00016147,2]
[398456314,1765674632871,-500.0,0.00016147,2]
[398456316,1765674632883,-500.0,0.00016147,2]
[398456318,1765674632892,-500.0,0.00016147,2]
[398456320,1765674632902,-500.0,0.00016147,2]
[398456322,1765674632912,-500.0,0.00016147,2]
[398456324,1765674632921,-500.0,0.00016147,2]
[398456326,1765674632931,-500.0,0.00016147,2]
[398456328,1765674632945,-500.0,0.00016147,2]
[398456330,1765674632954,-250.0,0.00016147,2]
[398456332,1765674632964,-250.0,0.00016147,2]
[398456334,1765674632973,-250.0,0.00016147,2]
[398456336,1765674632982,-250.0,0.00016147,2]
[398456338,1765674632992,-250.0,0.00016147,2]
[398456340,1765674633002,-151.0,0.00016147,2]
[398456342,1765674633014,-250.0,0.00016147,2]
[398456344,1765674633024,-250.0,0.00016147,2]
[398456346,1765674633033,-693.3919763,0.00016147,2]
[398456348,1765674633043,-250.0,0.00016147,2]
[398456350,1765674633054,-250.0,0.00016147,2]
[398456352,1765674633063,-250.0,0.00016147,2]
[398456354,1765674633073,-250.0,0.00016147,2]
[398456356,1765674633083,-620.0,0.00016147,2]
[398456358,1765674633093,-250.0,0.00016147,2]
[398456360,1765674633102,-250.0,0.00016147,2]
[398456362,1765674633112,-250.0,0.00016147,2]
[398456364,1765674633122,-250.0,0.00016147,2]
[398456366,1765674633131,-250.0,0.00016147,2]
[398456368,1765674633140,-250.0,0.00016147,2]
[398456370,1765674633150,-151.0,0.00016165,2]
[398456372,1765674633160,-151.0,0.00016168,2]
[398456374,1765674633170,-359.255206,0.00016202,2]
[398456376,1765674633179,-359.255206,0.00016202,2]
[398456378,1765674633188,-359.255206,0.00016202,2]
[398456380,1765674633198,-359.255206,0.00016202,2]
[398456382,1765674633208,-995.0,0.00016202,2]
[398456384,1765674633218,-368.0,0.00016216,2]
[398456386,1765674633227,-290.0,0.00016223,2]
[398456388,1765674633237,-995.0,0.00016257,2]
[398456390,1765674633246,-961.34595,0.00016258,2]
[398456392,1765674633256,-151.0,0.00016258,2]
[398456394,1765674633266,-961.34595,0.00016258,2]
[398456396,1765674633275,-151.0,0.00016258,2]
[398456398,1765674633285,-961.34595,0.00016258,2]
[398456400,1765674633295,-961.34595,0.00016258,2]
[398456402,1765674633304,-151.0,0.00016258,2]
[398456404,1765674633314,-232.001559,0.00016258,2]
[398456406,1765674633324,-150.0,0.00016258,2]
[398456408,1765674633333,-703.86,0.000163,2]
[398456410,1765674633343,-1405.47,0.000163,2]
[398456412,1765674633352,-150.0,0.00016307,2]
[398456414,1765674633362,-995.0,0.00016312,2]
[398456416,1765674633371,-379.39,0.00016318,2]
[398456418,1765674633381,-995.0,0.00016367,2]
[398456420,1765674633390,-368.0,0.00016381,2]
[398456422,1765674633400,-368.0,0.00016396,2]
[398456424,1765674633410,-703.86,0.000164,2]
[398456426,1765674633419,-433.43,0.00016421,2]
[398456428,1765674633428,-500.0,0.00016421,2]
[398456430,1765674633438,-995.0,0.00016422,2]
[398456432,1765674633448,-151.0,0.00016435,2]
[398456434,1765674633457,-157.5694503,0.00016438,2]
[398456436,1765674633467,-500.0,0.00016438,2]
[398456438,1765674633477,-500.0,0.00016438,2]
[398456440,1765674633492,-500.0,0.00016438,2]
[398456443,1765674633511,-581.37414848,0.00016438,2]
[398456445,1765674633522,-151.0,0.00016438,2]
[398456447,1765674633534,-266.930264,0.00016438,2]
[398456449,1765674633544,-359.255206,0.00016438,2]
[398456451,1765674633554,-359.255206,0.00016438,2]
[398456453,1765674633566,-359.255206,0.00016438,2]
[398456455,1765674633576,-359.255206,0.00016438,2]
[398456457,1765674633586,-151.0,0.00016438,2]
[398456459,1765674633595,-151.0,0.00016438,2]
[398456461,1765674633606,-9300.32,0.00016438,2]
[398456462,1765674633615,-151.0,0.00016438,2]
[398456463,1765674633626,-151.0,0.00016438,2]
[398456464,1765674633635,-151.0,0.00016438,2]
[398456465,1765674633646,-151.0,0.00016438,2]
[398456466,1765674633656,-151.0,0.00016438,2]
[398456467,1765674633666,-286.51096,0.00016438,2]
[398456468,1765674633676,-151.0,0.00016438,2]
[398456469,1765674633686,-151.0,0.00016438,2]
[398456470,1765674633696,-151.0,0.00016438,2]
[398456471,1765674633706,-151.0,0.00016438,2]
[398456472,1765674633715,-151.0,0.00016438,2]
[398456473,1765674633726,-151.0,0.00016438,2]
[398456474,1765674633736,-225.6,0.00016438,2]
[398456475,1765674633746,-800.0,0.00016438,2]
[398456476,1765674633755,-151.0,0.00016438,2]
[398456477,1765674633765,-151.0,0.00016438,2]
[398456478,1765674633775,-368.0,0.00016452,2]
[398456479,1765674633784,-995.0,0.00016477,2]
[398456480,1765674633795,-500.0,0.00016478,2]
[398456481,1765674633804,-500.0,0.00016478,2]
[398456482,1765674633815,-500.0,0.00016478,2]
[398456483,1765674633824,-562.09588733,0.00016478,2]
[398456484,1765674633834,-151.0,0.00016478,2]
[398456485,1765674633844,-961.34595,0.00016478,2]
[398456486,1765674633853,-151.0,0.00016478,2]
[398456487,1765674633864,-961.34595,0.00016478,2]
[398456488,1765674633873,-151.0,0.00016478,2]
[398456489,1765674633883,-961.34595,0.00016478,2]
[398456490,1765674633893,-961.34595,0.00016478,2]
[398456491,1765674633903,-150.32,0.00016479,2]
[398456492,1765674633912,-5244.6746,0.00016479,2]
[398456493,1765674633922,-500.0,0.00016499,2]
[398456494,1765674633932,-1286.83,0.000165,2]
[398456495,1765674633941,-703.86,0.000165,2]
[398456496,1765674633951,-150.0,0.00016501,2]
[398456497,1765674633960,-368.0,0.00016525,2]
[398456498,1765674633970,-546.0,0.00016557,2]
[398456500,1765674633979,-151.0,0.00016557,2]
[398456501,1765674634654,-151.0,0.00016557,2]